bitfinex-derivatives/quotes_ETHF0:USTF0_20250410
["timestamp","ask_amount","ask_price","bid_price","bid_amount"]
[1744314399117,2.69040851,1514.9,1514.8,1.3212]
[1744314399317,4.01156851,1514.9,1514.8,1.3212]
[1744314399819,2.69040851,1514.9,1514.8,1.3212]
[1744314400015,0.00990851,1514.9,1514.8,1.3212]
[1744314400210,0.00990851,1514.9,1514.8,6.3212]
[1744314400520,0.00990851,1514.9,1514.8,9.1764]
[1744314400813,1.32122,1514.8,1514.5,0.00990851]
[1744314401019,1.32137,1514.6,1514.5,0.00990851]
[1744314401408,6.32137,1514.6,1514.5,0.00990851]
[1744314401608,9.10097,1514.6,1514.5,0.00990851]
[1744314402208,4.10097,1514.6,1514.5,0.00990851]
[1744314402806,2.7796,1514.6,1514.5,0.00990851]
[1744314403119,4.10097,1514.6,1514.5,0.00990851]
[1744314403520,4.52907,1514.8,1514.5,0.00990851]
[1744314403709,5.8371,1514.8,1514.5,0.00990851]
[1744314403911,1.32137,1514.6,1514.5,0.00990851]
[1744314404119,1.32132,1514.7,1514.5,1.33136851]
[1744314404416,2.6293,1514.6,1514.5,1.33136851]
[1744314404819,2.6293,1514.6,1514.5,3.97786851]
[1744314405318,0.00990851,1514.9,1514.8,1.3212]
[1744314405517,4.08181851,1514.9,1514.8,1.3212]
[1744314405722,2.76070851,1514.9,1514.8,1.3212]
[1744314406022,0.00990851,1514.9,1514.8,1.3212]
[1744314406419,1.33101851,1514.9,1514.8,1.3212]
[1744314406622,0.00990851,1514.9,1514.8,1.3212]
[1744314406823,0.00990851,1514.9,1514.8,4.529]
[1744314407821,1.33101851,1514.9,1514.8,1.3212]
[1744314408017,0.00990851,1514.9,1514.8,1.3212]
[1744314408217,2.65920851,1514.9,1514.8,1.3212]
[1744314409026,3.98031851,1514.9,1514.8,1.3212]
[1744314409622,2.65920851,1514.9,1514.8,4.529]
[1744314409817,3.98031851,1514.9,1514.8,1.3212]
[1744314410028,0.00990851,1514.9,1514.8,4.529]
[1744314410721,2.6493,1515.4,1515.3,1.32076]
[1744314410921,5.852,1516.0,1515.3,1.32076]
[1744314410922,2.606,1516.0,1515.4,6.6034]
[1744314411119,2.8383,1515.8,1515.5,3.2078]
[1744314411324,2.8383,1515.8,1515.4,4.08675]
[1744314411527,1.32052,1515.6,1515.5,1.32055]
[1744314411719,2.8383,1515.8,1515.4,2.7661]
[1744314411915,6.13913,1515.8,1515.5,1.32059]
[1744314412123,1.32059,1515.5,1515.4,6.70316851]
[1744314412419,1.32055,1515.6,1515.5,1.32056]
[1744314412624,2.8383,1515.8,1515.5,3.2078]
[1744314412924,2.8383,1515.8,1515.6,3.92694]
[1744314412925,1.32041,1515.7,1515.6,3.92694]
[1744314413121,1.32041,1515.7,1515.6,1.32044]
[1744314413122,1.32046,1515.7,1515.6,1.32044]
[1744314413323,1.32059,1515.5,1515.4,2.77600851]
[1744314413530,4.15887,1515.6,1515.4,4.09659851]
[1744314413726,4.15887,1515.6,1515.4,6.70309851]
[1744314413923,1.32059,1515.5,1515.4,6.70309851]
[1744314414124,2.8383,1515.6,1515.5,1.32059]
[1744314414424,1.32059,1515.5,1515.4,5.38250851]
[1744314415229,4.15886,1515.6,1515.4,5.38250851]
[1744314415432,2.8383,1515.6,1515.4,5.38250851]
[1744314415729,4.15884,1515.6,1515.4,5.38250851]
[1744314415927,1.32059,1515.5,1515.4,5.38250851]
[1744314416228,4.17389,1515.5,1515.4,0.00990851]
[1744314417721,2.8533,1515.5,1515.4,1.33058851]
[1744314418120,2.8533,1515.5,1515.4,0.00990851]
[1744314418321,4.17389,1515.5,1515.4,1.33058851]
[1744314418527,4.17389,1515.5,1515.4,0.00990851]
[1744314419026,1.32102,1515.0,1514.9,1.32106]
[1744314419219,3.30217,1515.2,1514.8,1.32113]
[1744314419220,1.32115,1514.9,1514.8,1.32113]
[1744314419524,2.8332,1514.9,1514.8,1.3212]
[1744314419723,6.50911,1515.6,1514.9,3.30279]
[1744314419917,4.15395,1515.4,1515.3,1.32076]
[1744314420122,2.8332,1515.4,1515.3,1.32076]
[1744314420323,4.15388,1515.4,1515.3,4.52856]
[1744314420525,4.15388,1515.4,1515.3,3.2078]
[1744314420832,1.32076,1515.3,1515.2,4.16736851]
[1744314421032,2.7067,1515.3,1515.2,4.16736851]
[1744314421234,1.3207,1515.4,1515.3,1.32076]
[1744314421436,0.00990851,1515.5,1515.4,1.32068]
[1744314421629,0.00990851,1515.5,1515.4,4.15738]
[1744314421926,1.33049851,1515.5,1515.4,4.15738]
[1744314422127,1.33056851,1515.5,1515.3,1.32071]
[1744314422433,2.7067,1515.4,1515.3,7.36526]
[1744314422634,0.00990851,1515.5,1515.4,1.32068]
[1744314422834,0.00990851,1515.5,1515.4,4.15738]
[1744314423132,2.71660851,1515.5,1515.4,4.15738]
[1744314423526,4.03719851,1515.5,1515.4,4.15738]
[1744314423723,2.71660851,1515.5,1515.4,1.32068]
[1744314424132,2.71660851,1515.5,1515.4,3.97408]
[1744314424430,4.03719851,1515.5,1515.4,3.97408]
[1744314424634,4.03719851,1515.5,1515.3,1.32074]
[1744314424635,2.71660851,1515.5,1515.3,1.32074]
[1744314424931,2.71660851,1515.5,1515.2,0.00990851]
[1744314424932,1.32076,1515.3,1515.2,1.33075851]
[1744314425136,1.32076,1515.3,1515.2,0.00990851]
[1744314425339,1.32076,1515.3,1515.2,1.33075851]
[1744314426433,1.32076,1515.3,1515.2,0.00990851]
[1744314426638,6.32076,1515.3,1515.2,0.00990851]
[1744314426828,8.94556,1515.3,1515.2,0.00990851]
[1744314427033,3.94556,1515.3,1515.2,0.00990851]
[1744314427233,3.94556,1515.3,1515.2,1.33075851]
[1744314428241,2.6248,1515.3,1515.2,1.33075851]
[1744314428437,3.94556,1515.3,1515.2,1.33075851]
[1744314428831,3.94556,1515.3,1515.2,3.97225851]
[1744314429036,3.94556,1515.3,1515.2,0.00990851]
[1744314429537,3.94556,1515.3,1515.2,1.33075851]
[1744314430132,3.94556,1515.3,1515.2,0.00990851]
[1744314430332,6.74846,1515.3,1515.2,0.00990851]
[1744314431336,11.74846,1515.3,1515.2,0.00990851]
[1744314431546,1.3212,1514.8,1514.7,7.28937]
[1744314431836,1.3212,1514.8,1514.7,4.52907]
[1744314432244,6.0107,1515.3,1514.7,8.2078]
[1744314432437,2.8216,1515.1,1515.0,1.32102]
[1744314432637,4.52862,1515.3,1515.2,1.32085]
[1744314432835,2.8216,1515.3,1515.2,1.32085]
[1744314433038,4.14236,1515.3,1515.2,1.32085]
[1744314433542,1.3209,1515.2,1515.1,1.32089]
[1744314434445,1.32094,1515.1,1515.0,5.992]
[1744314434647,1.3211,1515.0,1514.9,1.32109]
[1744314434841,1.32111,1514.9,1514.8,0.00990851]
[1744314435042,4.52891,1514.9,1514.8,0.00990851]
[1744314435249,9.52891,1514.9,1514.8,0.00990851]
[1744314435445,1.32137,1514.6,1514.5,10.31308322]
[1744314435944,7.21052,1514.7,1514.5,10.31308322]
[1744314436241,1.32111,1514.9,1514.8,1.3212]
[1744314436449,2.6814,1515.0,1514.9,1.32111]
[1744314436646,2.69130851,1515.0,1514.9,1.32111]
[1744314436846,4.01232851,1515.0,1514.9,1.32111]
[1744314437745,2.69130851,1515.0,1514.9,1.32111]
[1744314438241,0.00990851,1515.0,1514.9,4.06871]
[1744314438749,1.33092851,1515.0,1514.9,2.7476]
[1744314438948,0.00990851,1515.0,1514.9,1.32111]
[1744314439343,0.00990851,1515.0,1514.8,5.7836]
[1744314439543,1.33097851,1515.0,1514.9,1.32111]
[1744314439844,0.00990851,1515.0,1514.9,1.32111]
[1744314440045,4.04972851,1515.0,1514.9,1.32111]
[1744314440743,4.04972851,1515.0,1514.8,5.7836]
[1744314440744,1.32111,1514.9,1514.8,7.10473]
[1744314440945,4.03991,1514.9,1514.8,7.10473]
[1744314441442,2.7188,1514.9,1514.8,7.10473]
[1744314441643,4.03991,1514.9,1514.8,7.10473]
[1744314441845,2.7188,1514.9,1514.8,7.10473]
[1744314442244,0.00990851,1515.0,1514.9,1.32111]
[1744314442548,1.33092851,1515.0,1514.9,1.32111]
[1744314442945,0.00990851,1515.0,1514.9,4.01921]
[1744314443253,0.00990851,1515.0,1514.9,14.91621]
[1744314443554,185.9,1515.4,1515.3,1.32076]
[1744314443951,185.9,1515.4,1515.3,6.32076]
[1744314444547,178.57442408,1515.4,1515.3,6.32076]
[1744314446246,176.67931408,1515.4,1515.3,6.32076]
[1744314446447,172.17446408,1515.4,1515.3,12.31276]
[1744314446752,167.59031408,1515.4,1515.3,12.31276]
[1744314447158,165.54734408,1515.4,1515.3,12.31276]
[1744314447359,165.54734408,1515.4,1515.3,7.31276]
[1744314447748,165.54734408,1515.4,1515.3,1.32076]
[1744314448446,168.24274408,1515.4,1515.3,1.32076]
[1744314448647,1.32076,1515.3,1515.2,3.2078]
[1744314448860,2.6954,1515.3,1515.1,1.32086]
[1744314449051,2.6954,1515.3,1515.0,8.7829]
[1744314449252,4.01621,1515.3,1515.2,1.32085]
[1744314449552,4.01621,1515.3,1515.0,22.39854322]
[1744314449553,4.01621,1515.3,1515.0,19.09598322]
[1744314449758,4.01621,1515.3,1515.0,10.31308322]
[1744314449759,1.32094,1515.1,1515.0,10.31308322]
[1744314450458,4.01634,1515.1,1515.0,10.31308322]
[1744314450656,9.01634,1515.1,1515.0,10.31308322]
[1744314451360,4.01634,1515.1,1515.0,10.31308322]
[1744314451651,2.6954,1515.1,1515.0,10.31308322]
[1744314451845,165.54734408,1515.4,1515.3,1.32076]
[1744314452050,168.11654408,1515.4,1515.3,1.32076]
[1744314452451,1.32076,1515.3,1515.2,2.639]
[1744314452651,3.88996,1515.3,1515.2,3.2078]
[1744314453146,2.5692,1515.3,1515.2,4.52865]
[1744314453751,165.54734408,1515.4,1515.3,1.32076]
[1744314453956,166.86809408,1515.4,1515.2,4.5286]
[1744314454152,3.91386,1515.3,1514.9,5.992]
[1744314454357,2.5931,1515.3,1515.2,1.32085]
[1744314454548,2.5931,1515.3,1515.2,4.52865]
[1744314455157,2.5931,1515.3,1515.2,7.25095]
[1744314455357,165.54734408,1515.4,1515.3,1.32076]
[1744314456254,165.54734408,1515.4,1515.3,7.21676]
[1744314456851,165.54734408,1515.4,1515.3,12.21676]
[1744314457459,165.54734408,1515.4,1515.3,1.32076]
[1744314457658,168.10084408,1515.4,1515.3,1.32076]
[1744314459057,165.54734408,1515.4,1515.3,1.32076]
[1744314459656,168.10084408,1515.4,1515.3,1.32076]
[1744314460154,169.42152408,1515.4,1515.3,1.32076]
[1744314460353,169.42157408,1515.4,1515.3,1.32076]
[1744314460854,1.32076,1515.3,1515.2,4.52857]
[1744314461050,1.32076,1515.3,1515.2,4.5286]
[1744314461660,166.86806408,1515.4,1515.3,1.32076]
[1744314461858,166.86802408,1515.4,1515.3,1.32076]
[1744314462356,165.54734408,1515.4,1515.3,1.32076]
[1744314463448,1.32085,1515.2,1515.1,8.6348]
[1744314463654,1.32091,1515.2,1515.1,1.32091]
[1744314463854,1.32093,1515.2,1515.1,1.32092]
[1744314464054,165.54734408,1515.1,1514.9,10.31308322]
[1744314464257,1.32102,1515.0,1514.9,11.63415322]
[1744314464854,1.32102,1515.0,1514.9,10.31308322]
[1744314465056,6.32102,1515.0,1514.9,10.31308322]
[1744314465964,1.32102,1515.0,1514.9,10.31308322]
[1744314466162,1.32102,1515.0,1514.9,11.63419322]
[1744314466363,1.32102,1515.0,1514.9,1.32111]
[1744314466563,166.86834408,1515.1,1515.0,1.32102]
[1744314467266,165.54734408,1515.1,1514.8,5.9867]
[1744314467466,1.32108,1515.0,1514.9,1.32105]
[1744314467669,166.86835408,1515.1,1515.0,1.32102]
[1744314468067,165.54734408,1515.1,1515.0,1.32102]
[1744314468467,165.54734408,1515.1,1515.0,4.52882]
[1744314469967,165.54734408,1515.1,1514.9,1.32104]
[1744314470269,1.32105,1515.0,1514.9,1.32111]
[1744314470460,1.3212,1514.8,1514.7,0.00990851]
[1744314472968,4.529,1514.8,1514.7,0.00990851]
[1744314473466,9.529,1514.8,1514.7,0.00990851]
[1744314473872,3.91968,1514.9,1514.8,1.3212]
[1744314474067,2.5985,1514.9,1514.8,1.3212]
[1744314474259,1.32102,1515.0,1514.9,1.32111]
[1744314474464,165.54734408,1515.1,1515.0,1.32102]
[1744314474865,166.86828408,1515.1,1515.0,1.32102]
[1744314475165,1.3211,1515.0,1514.9,1.32111]
[1744314475359,166.86831408,1515.1,1515.0,1.32102]
[1744314476067,165.54734408,1515.1,1514.9,3.2078]
[1744314476266,1.32103,1515.0,1514.9,4.52886]
[1744314476456,165.54734408,1515.1,1514.9,3.2078]
[1744314476661,1.32102,1515.0,1514.9,4.52887]
[1744314476964,165.54734408,1515.1,1514.9,3.2078]
[1744314477166,1.32102,1515.0,1514.9,3.2078]
[1744314477868,166.86835408,1515.1,1515.0,1.32102]
[1744314478270,166.86834408,1515.1,1515.0,1.32102]
[1744314478465,1.32102,1515.0,1514.9,2.7177]
[1744314478663,1.3212,1514.8,1514.7,0.00990851]
[1744314480263,8.9388,1514.8,1514.7,0.00990851]
[1744314480471,3.9388,1514.8,1514.7,1.33119851]
[1744314481666,170.07616408,1515.1,1515.0,1.32102]
[1744314481866,166.86836408,1515.1,1515.0,1.32102]
[1744314482264,1.32102,1515.0,1514.9,4.52882]
[1744314482561,166.86834408,1515.1,1514.9,3.2078]
[1744314482756,166.86828408,1515.1,1515.0,1.32102]
[1744314482961,1.32102,1515.0,1514.9,4.52884]
[1744314483165,1.32111,1514.9,1514.8,3.77394]
[1744314483366,1.3212,1514.8,1514.7,0.00990851]
[1744314483568,3.7874,1514.8,1514.7,0.00990851]
[1744314483868,6.9952,1514.8,1514.7,0.00990851]
[1744314484082,3.7874,1514.8,1514.7,0.00990851]
[1744314484664,3.7874,1514.8,1514.7,1.33119851]
[1744314484861,3.7874,1514.8,1514.7,0.00990851]
[1744314487576,3.7874,1514.8,1514.7,1.33119851]
[1744314488069,3.7874,1514.8,1514.7,0.00990851]
[1744314488370,1.32112,1515.0,1514.9,1.32109]
[1744314488574,2.4501,1515.0,1514.9,1.32111]
[1744314488972,3.77112,1515.0,1514.9,3.85121]
[1744314489175,166.86832408,1515.1,1515.0,1.32102]
[1744314489375,1.32102,1515.0,1514.9,3.85117]
[1744314489576,169.31845408,1515.1,1515.0,1.32102]
[1744314489879,1.32102,1515.0,1514.9,3.85116]
[1744314490572,1.32102,1515.0,1514.9,2.5301]
[1744314491071,3.85912,1515.0,1514.9,2.5301]
[1744314491473,1.3212,1514.8,1514.7,2.62350851]
[1744314491868,3.8593,1514.8,1514.7,3.94479851]
[1744314492374,2.5381,1514.8,1514.7,3.94479851]
[1744314492680,1.3212,1514.8,1514.7,3.94471851]
[1744314492879,1.3212,1514.8,1514.7,6.45421851]
[1744314493280,1.3212,1514.8,1514.7,0.00990851]
[1744314493671,166.86831408,1515.1,1514.7,5.00990851]
[1744314493872,165.54734408,1515.1,1515.0,1.32102]
[1744314494174,166.86833408,1515.1,1515.0,1.32102]
[1744314494484,1.32099,1515.1,1515.0,3.78532]
[1744314494672,1.32111,1514.9,1514.8,2.5533]
[1744314494872,1.3212,1514.8,1514.7,0.00990851]
[1744314495179,169.32594408,1514.8,1514.7,0.00990851]
[1744314495482,174.32594408,1514.8,1514.7,0.00990851]
[1744314495681,182.41424408,1514.8,1514.7,0.00990851]
[1744314495879,3.30344,1514.6,1514.2,10.31308322]
[1744314496080,1.32164,1514.3,1514.2,10.31308322]
[1744314496585,13.81034,1514.3,1514.2,10.31308322]
[1744314497174,13.81034,1514.3,1514.2,4.98899173]
[1744314497376,2.5823,1514.3,1514.1,4.99890024]
[1744314497580,1.32172,1514.2,1514.1,6.32071024]
[1744314498182,2.5823,1514.3,1514.2,1.32172]
[1744314498377,2.5823,1514.3,1514.2,3.91312]
[1744314498578,0.00990851,1514.4,1514.3,1.32164]
[1744314498777,1.3213,1514.7,1514.6,1.3213]
[1744314498978,169.45091408,1514.8,1514.7,1.32129]
[1744314499488,1.32129,1514.7,1514.6,1.32137]
[1744314499671,1.32137,1514.6,1514.5,5.2061]
[1744314499875,2.5545,1514.7,1514.5,5.2061]
[1744314500177,2.5545,1514.7,1514.6,1.32137]
[1744314500478,165.55725259,1514.8,1514.7,1.32129]
[1744314500682,165.55725259,1514.8,1514.7,3.90379]
[1744314500882,165.55725259,1514.8,1514.7,8.90379]
[1744314501186,165.55725259,1514.8,1514.7,14.53979]
[1744314501381,165.55725259,1514.8,1514.7,9.53979]
[1744314502787,165.55725259,1514.8,1514.7,14.53979]
[1744314503079,165.55725259,1514.8,1514.7,20.53179]
[1744314503283,156.3858711,1514.8,1514.7,21.04567782]
[1744314503479,143.9688911,1514.8,1514.7,21.04567782]
[1744314503688,87.01953814,1514.8,1514.7,21.04567782]
[1744314503981,82.63517814,1514.8,1514.7,29.53423598]
[1744314504382,79.87098814,1514.8,1514.7,29.53423598]
[1744314504682,74.22149814,1514.8,1514.7,29.53423598]
[1744314504985,71.34931814,1514.8,1514.7,21.04567782]
[1744314505883,71.34931814,1514.8,1514.7,14.89579]
[1744314506089,77.95092241,1514.8,1514.7,9.89579]
[1744314506388,77.95092241,1514.8,1514.7,8.5745]
[1744314506389,79.27212241,1514.8,1514.7,8.5745]
[1744314506682,87.95092241,1514.8,1514.6,3.2078]
[1744314506883,6.60160427,1514.7,1514.6,7.06657]
[1744314507390,7.92289427,1514.7,1514.6,2.5374]
[1744314507590,20.52519427,1514.7,1514.6,2.5374]
[1744314507786,20.52519427,1514.7,1514.6,3.85877]
[1744314507787,19.20390427,1514.7,1514.6,3.85877]
[1744314507987,20.52519427,1514.7,1514.6,2.5374]
[1744314508184,1.32137,1514.6,1514.5,2.6147]
[1744314508390,10.52527427,1514.6,1514.5,2.6147]
[1744314508593,20.52527427,1514.6,1514.5,2.6147]
[1744314508781,1.32164,1514.3,1514.2,5.4939435]
[1744314509186,7.92324427,1514.3,1514.2,5.4939435]
[1744314510681,11.13104427,1514.3,1514.2,5.4939435]
[1744314510883,1.32181,1514.1,1514.0,13.88645092]
[1744314511083,10.16561,1514.1,1514.0,13.88645092]
[1744314511287,1.3219,1514.0,1513.9,25.08691175]
[1744314511495,6.3219,1514.0,1513.9,23.26312175]
[1744314511793,6.3219,1514.0,1513.9,21.86532175]
[1744314512791,1.3219,1514.0,1513.9,21.86532175]
[1744314513094,3.2078,1514.3,1514.0,1.3219]
[1744314513296,1.32185,1514.1,1513.9,25.67446175]
[1744314513591,6.51192,1514.3,1513.9,2.4872]
[1744314513898,1.32185,1514.1,1514.0,1.3219]
[1744314514194,1.32181,1514.1,1514.0,1.3219]
[1744314514395,1.32198,1513.9,1513.8,0.00990851]
[1744314514596,15.16678,1513.9,1513.8,0.00990851]
[1744314514997,1.32242,1513.4,1513.3,25.56989452]
[1744314515794,2.4313,1513.5,1513.4,1.32242]
[1744314516295,2.4313,1513.5,1513.4,2.439]
[1744314516500,1.32218,1513.7,1513.6,1.32223]
[1744314516700,1.32218,1513.7,1513.4,2.439]
[1744314516701,2.4313,1513.7,1513.5,1.32229]
[1744314516889,3.75353,1513.7,1513.6,2.439]
[1744314517502,2.4313,1513.7,1513.6,2.439]
[1744314517701,1.3223,1513.6,1513.4,4.53015]
[1744314517897,6.51343,1513.6,1513.3,25.57980303]
[1744314518194,1.32242,1513.4,1513.3,0.00990851]
[1744314519100,3.76402,1513.4,1513.3,0.00990851]
[1744314519494,6.97182,1513.4,1513.3,0.00990851]
[1744314519895,11.97182,1513.4,1513.3,0.00990851]
[1744314520697,3.30628,1513.3,1512.7,3.2078]
[1744314521003,1.32282,1513.0,1512.9,2.4605]
[1744314521496,1.32274,1513.1,1512.9,2.4605]
[1744314521706,1.32269,1513.1,1513.0,1.32272]
[1744314522101,8.21890851,1513.2,1512.9,5.6683]
[1744314522102,3.90253851,1513.2,1512.9,5.6683]
[1744314522408,0.00990851,1513.2,1513.1,1.32268]
[1744314522802,0.00990851,1513.2,1513.1,3.78318]
[1744314523002,0.00990851,1513.2,1513.1,2.4605]
[1744314523312,0.00990851,1513.2,1513.1,3.78318]
[1744314523509,1.33250851,1513.2,1513.1,3.78318]
[1744314524009,0.00990851,1513.2,1513.1,6.99098]
[1744314524308,0.00990851,1513.2,1513.1,11.99098]
[1744314524809,0.00990851,1513.2,1513.1,17.66798]
[1744314525306,1.33250851,1513.2,1513.1,17.66798]
[1744314525609,0.00990851,1513.2,1513.1,17.66798]
[1744314527412,1.32221,1513.7,1513.6,1.32225]
[1744314527599,3.30497,1513.9,1513.5,3.2078]
[1744314527807,1.32225,1513.6,1513.5,2.5484]
[1744314528003,1.32225,1513.6,1513.5,3.87073]
[1744314528213,1.32225,1513.6,1513.5,2.5484]
[1744314529009,3.86381,1513.6,1513.4,7.31435]
[1744314529306,1.32233,1513.5,1513.4,5.992]
[1744314529516,3.30584,1513.5,1512.9,12.50678]
[1744314529698,1.32268,1513.1,1512.9,3.2078]
[1744314529905,1.32268,1513.1,1513.0,7.546]
[1744314530212,1.32265,1513.2,1513.0,7.546]
[1744314530505,0.00990851,1513.7,1513.4,1.32236]
[1744314530703,5.78919851,1513.7,1513.4,1.32237]
[1744314530908,0.00990851,1513.7,1513.3,12.19191]
[1744314531103,0.00990851,1513.7,1513.6,1.32225]
[1744314531308,0.00990851,1513.7,1513.5,1.32233]
[1744314531505,1.32225,1513.6,1513.4,3.88005]
[1744314531811,3.30562,1513.6,1513.2,1.32257]
[1744314532005,1.32251,1513.3,1513.1,5.992]
[1744314532212,1.32251,1513.3,1513.0,5.80099]
[1744314532213,5.6815,1513.5,1513.0,2.4941]
[1744314532405,1.32254,1513.3,1513.0,5.80102]
[1744314532605,1.32249,1513.4,1513.1,3.2078]
[1744314532804,8.98737,1513.5,1513.0,2.4941]
[1744314533006,1.32277,1513.0,1512.9,3.88052]
[1744314533210,1.32277,1513.0,1512.9,3.88056]
[1744314533515,1.32286,1512.9,1512.8,1.33283851]
[1744314533714,1.32284,1513.0,1512.8,0.00990851]
[1744314534012,1.32286,1512.9,1512.8,1.33283851]
[1744314534212,1.32286,1512.9,1512.8,0.00990851]
[1744314535211,2.529,1513.1,1512.9,1.32286]
[1744314535510,2.529,1513.1,1513.0,1.32277]
[1744314536013,1.3228,1513.0,1512.9,1.3228]
[1744314536305,6.51421,1513.3,1512.9,1.3228]
[1744314536511,2.6036,1513.2,1512.8,6.62464851]
[1744314536712,1.32269,1513.1,1513.0,1.32269]
[1744314536912,1.32267,1513.2,1513.1,1.32268]
[1744314537118,1.32268,1513.1,1513.0,3.95937]
[1744314537318,1.32268,1513.1,1513.0,2.6366]
[1744314537518,1.32268,1513.1,1513.0,3.95937]
[1744314537718,12.1917,1513.5,1513.0,2.6366]
[1744314538021,1.3226,1513.2,1513.1,2.6208]
[1744314538220,1.32257,1513.3,1513.1,2.6208]
[1744314538519,2.6036,1513.5,1513.1,5.8286]
[1744314538719,1.32246,1513.4,1513.1,9.13528]
[1744314538917,1.32251,1513.3,1513.2,1.32253]
[1744314539308,1.32249,1513.4,1513.3,1.32251]
[1744314539714,5.90723,1513.6,1513.1,14.8133]
[1744314539912,5.90723,1513.6,1513.1,11.5066]
[1744314540114,1.3225,1513.4,1513.3,1.32251]
[1744314540416,1.32245,1513.4,1513.1,20.80531]
[1744314540617,1.32252,1513.3,1513.1,17.4986]
[1744314540819,1.32252,1513.3,1513.2,1.32252]
[1744314541122,1.3226,1513.2,1513.1,8.6128]
[1744314541622,1.32257,1513.3,1513.2,1.32259]
[1744314542019,3.9241,1513.4,1513.3,1.32251]
[1744314542220,3.9241,1513.4,1513.1,9.93547]
[1744314542221,1.3226,1513.2,1513.1,9.93547]
[1744314542423,1.3226,1513.2,1513.1,8.6128]
[1744314542626,2.67540851,1513.7,1513.3,3.30628]
[1744314542627,0.00990851,1513.7,1513.3,3.30628]
[1744314542920,1.32233,1513.5,1513.4,5.678]
[1744314543121,1.32233,1513.5,1513.4,7.00042]
[1744314543519,2.6069,1513.6,1513.2,3.30645]
[1744314543724,1.32246,1513.4,1513.3,1.3224]
[1744314544024,2.6069,1513.6,1513.2,3.30642]
[1744314544214,1.32238,1513.5,1513.4,1.32235]
[1744314544620,2.6069,1513.6,1513.5,1.32233]
[1744314544621,1.32225,1513.6,1513.5,1.32233]
[1744314544824,1.32233,1513.6,1513.5,1.3223]
[1744314545228,1.32233,1513.5,1513.4,3.90202]
[1744314545524,3.89841,1513.6,1513.5,1.32233]
[1744314545723,1.33215851,1513.7,1513.6,1.32225]
[1744314546421,6.52328851,1513.7,1513.1,11.8206]
[1744314546626,6.52328851,1513.7,1513.1,6.41621]
[1744314546627,1.3226,1513.2,1513.1,6.41621]
[1744314546834,1.32256,1513.3,1513.2,1.32252]
[1744314547021,1.3226,1513.2,1513.1,6.41623]
[1744314547222,3.30628,1513.3,1512.9,3.2078]
[1744314547529,5.88261,1513.2,1512.8,0.00990851]
[1744314547725,1.32286,1512.9,1512.8,0.00990851]
[1744314548130,1.32286,1512.9,1512.8,1.33285851]
[1744314548639,1.32286,1512.9,1512.8,0.00990851]
[1744314548926,2.5166,1513.2,1512.8,0.00990851]
[1744314549125,6.52330851,1513.7,1513.1,6.51433]
[1744314549326,5.81453,1513.6,1513.2,7.4463]
[1744314549525,1.32251,1513.3,1513.2,8.76884]
[1744314549725,1.32247,1513.4,1513.3,1.32245]
[1744314549927,5.81433,1513.6,1513.2,7.4463]
[1744314550133,1.32251,1513.3,1513.2,8.76889]
[1744314550333,1.32249,1513.4,1513.3,1.32248]
[1744314551030,1.32242,1513.5,1513.4,1.32239]
[1744314551231,1.32247,1513.4,1513.3,1.32246]
[1744314552033,1.32251,1513.3,1513.2,8.76883]
[1744314552230,9.17223,1513.5,1513.0,1.32269]
[1744314552536,1.32268,1513.1,1513.0,2.4967]
[1744314553534,1.32286,1512.9,1512.8,2.52720851]
[1744314553934,1.32286,1512.9,1512.8,3.85015851]
[1744314554732,3.98126,1513.0,1512.9,1.32286]
[1744314554928,3.98126,1513.0,1512.9,3.80506]
[1744314555437,1.32277,1513.1,1513.0,1.32275]
[1744314555936,3.73917,1513.2,1513.1,1.32268]
[1744314556236,1.32266,1513.2,1513.1,1.32265]
[1744314556424,1.32277,1513.1,1513.0,1.32274]
[1744314556829,1.32268,1513.2,1513.1,1.32268]
[1744314557130,1.32268,1513.1,1513.0,4.5305]
[1744314557331,1.32268,1513.1,1513.0,1.3227]
[1744314557531,1.32279,1513.0,1512.9,1.32278]
[1744314557731,1.32286,1512.9,1512.8,8.34630851]
[1744314557931,1.32286,1512.9,1512.8,6.46145851]
[1744314558431,1.32282,1513.0,1512.9,1.32281]
[1744314558835,1.32286,1512.9,1512.8,5.13850851]
[1744314559044,1.32286,1512.9,1512.8,2.52720851]
[1744314559337,1.32286,1512.9,1512.8,0.00990851]
[1744314560027,3.86326,1512.9,1512.8,0.00990851]
[1744314560536,3.30747,1512.8,1512.4,3.92368]
[1744314560736,1.32321,1512.5,1512.4,3.92368]
[1744314561534,5.91629,1512.7,1512.6,1.32306]
[1744314561535,1.32308,1512.7,1512.6,1.32306]
[1744314561935,3.94139851,1512.8,1512.7,1.32303]
[1744314562237,0.00990851,1512.8,1512.7,4.53083]
[1744314563035,5.00990851,1512.8,1512.4,2.6004]
[1744314563244,2.6085,1512.7,1512.5,1.32314]
[1744314563441,2.6085,1512.7,1512.4,5.90865]
[1744314563738,0.00990851,1512.8,1512.4,9.2169]
[1744314563943,0.00990851,1512.8,1512.7,1.32303]
[1744314564241,1.33285851,1512.8,1512.7,1.32303]
[1744314564432,1.32319,1512.6,1512.5,1.32319]
[1744314564627,1.32306,1512.7,1512.6,1.32312]
[1744314564838,1.32306,1512.7,1512.4,5.90846]
[1744314564839,1.33291851,1512.8,1512.7,1.32303]
[1744314565036,1.32305,1512.7,1512.6,1.32305]
[1744314565241,1.32314,1512.6,1512.5,1.32313]
[1744314565541,0.00990851,1512.8,1512.4,9.11626]
[1744314565737,1.32315,1512.6,1512.5,1.32315]
[1744314566034,1.32321,1512.5,1512.4,2.6004]
[1744314566239,1.32321,1512.5,1512.4,3.9237]
[1744314566739,3.21770851,1512.8,1512.4,2.6004]
[1744314566942,3.77188,1512.7,1512.6,1.32308]
[1744314567242,3.77191,1512.7,1512.6,1.32312]
[1744314567444,1.32314,1512.6,1512.5,1.32314]
[1744314567936,0.00990851,1512.8,1512.5,3.2078]